bitfinex-derivatives/quotes_BTCF0:USTF0_20241110
["timestamp","ask_amount","ask_price","bid_price","bid_amount"]
[1731235598852,0.08469007,79602.0,79596.0,0.3608]
[1731235599250,0.08551859,79602.0,79596.0,0.3608]
[1731235601450,0.04136554,79601.0,79596.0,0.3608]
[1731235601650,0.04136554,79600.0,79596.0,0.3608]
[1731235601857,0.08933744,79599.0,79596.0,0.3608]
[1731235602154,0.04136554,79598.0,79596.0,0.3608]
[1731235602357,0.04136554,79597.0,79596.0,0.3608]
[1731235602763,0.40299406,79597.0,79584.0,0.00010318]
[1731235603067,0.08899477,79596.0,79584.0,0.00010318]
[1731235603363,0.08899477,79595.0,79584.0,0.00010318]
[1731235603560,0.08899477,79594.0,79584.0,0.00010318]
[1731235603760,0.08892068,79593.0,79584.0,0.00010318]
[1731235604054,0.04136554,79592.0,79584.0,0.00010318]
[1731235604253,0.04136554,79591.0,79584.0,0.00010318]
[1731235604455,0.04136554,79590.0,79586.0,0.08471812]
[1731235604666,0.36162852,79604.0,79589.0,0.3608]
[1731235604859,0.08936946,79603.0,79594.0,0.08471812]
[1731235605159,0.09013003,79602.0,79596.0,0.3608]
[1731235605352,0.00082852,79604.0,79596.0,0.3608]
[1731235605353,0.04170665,79601.0,79596.0,0.3608]
[1731235605549,0.04170665,79600.0,79596.0,0.3608]
[1731235605758,0.04170665,79599.0,79596.0,0.3608]
[1731235605963,0.00082852,79604.0,79596.0,0.3608]
[1731235605964,0.04170665,79598.0,79596.0,0.3608]
[1731235606156,0.04170665,79597.0,79596.0,0.3608]
[1731235609365,0.04170665,79597.0,79596.0,0.31681569]
[1731235609578,0.02513311,79604.0,79596.0,0.31681569]
[1731235609866,0.02513311,79604.0,79596.0,0.3608]
[1731235610970,0.3608,79609.0,79596.0,0.3608]
[1731235611167,0.36162852,79609.0,79596.0,0.3982658]
[1731235611368,0.36162852,79609.0,79597.0,0.0374658]
[1731235611756,0.36162852,79609.0,79596.0,0.3608]
[1731235611757,0.36162852,79609.0,79603.0,0.3608]
[1731235612463,0.3608,79626.0,79607.0,0.08471812]
[1731235612763,0.3608,79626.0,79613.0,0.44551812]
[1731235615761,0.02513189,79625.0,79613.0,0.44551812]
[1731235616369,0.02513189,79625.0,79613.0,0.3608]
[1731235616573,0.04324775,79614.0,79605.0,0.17196]
[1731235616771,0.04230991,79613.0,79605.0,0.17196]
[1731235616968,0.04230991,79612.0,79605.0,0.53276]
[1731235617171,0.04230991,79611.0,79605.0,0.53276]
[1731235617476,0.00093784,79614.0,79605.0,0.53276]
[1731235617477,0.04230991,79610.0,79605.0,0.53276]
[1731235617671,0.00093784,79614.0,79605.0,0.53276]
[1731235617672,0.04230991,79609.0,79605.0,0.53276]
[1731235617866,0.04230991,79608.0,79605.0,0.53276]
[1731235618062,0.04230991,79607.0,79605.0,0.53276]
[1731235618373,0.04230991,79606.0,79605.0,0.53276]
[1731235620160,0.00010932,79614.0,79605.0,0.61747812]
[1731235620367,0.04182095,79613.0,79605.0,0.61747812]
[1731235620576,0.04182095,79612.0,79605.0,0.61747812]
[1731235620766,0.04182095,79611.0,79605.0,0.61747812]
[1731235620967,0.00010932,79614.0,79605.0,0.61747812]
[1731235621176,0.04202447,79613.0,79605.0,0.61747812]
[1731235621366,0.04202447,79612.0,79605.0,0.61747812]
[1731235621562,0.00010932,79614.0,79605.0,0.61747812]
[1731235621863,0.04208516,79613.0,79605.0,0.61747812]
[1731235622059,0.04208516,79612.0,79605.0,0.61747812]
[1731235622268,0.04207287,79611.0,79605.0,0.61747812]
[1731235622468,0.00010932,79614.0,79605.0,0.61747812]
[1731235622665,0.04199362,79613.0,79605.0,0.61747812]
[1731235622976,0.04207151,79612.0,79605.0,0.61747812]
[1731235623168,0.04207151,79611.0,79605.0,0.61747812]
[1731235623466,0.00010932,79614.0,79605.0,0.61747812]
[1731235623467,0.04207151,79610.0,79605.0,0.61747812]
[1731235623672,0.04207151,79609.0,79605.0,0.61747812]
[1731235623874,0.00010932,79614.0,79605.0,0.61747812]
[1731235624070,0.04200565,79613.0,79605.0,0.61747812]
[1731235624270,0.04200565,79612.0,79605.0,0.61747812]
[1731235624574,0.00010932,79614.0,79605.0,0.61747812]
[1731235625673,0.00010932,79614.0,79608.0,0.3608]
[1731235627866,0.00010932,79614.0,79612.0,0.08471812]
[1731235628272,3.2e-07,79614.0,79612.0,0.08471812]
[1731235628974,3.2e-07,79614.0,79612.0,0.46155812]
[1731235629171,3.2e-07,79614.0,79613.0,0.37684]
[1731235630571,0.24218132,79619.0,79612.0,0.08471812]
[1731235630776,0.02512935,79642.0,79618.0,0.44551812]
[1731235631068,0.02512935,79642.0,79631.0,0.44551812]
[1731235631686,0.00203058,79632.0,79631.0,0.44551812]
[1731235632078,0.00203058,79632.0,79631.0,0.60199812]
[1731235632276,0.00014511,79632.0,79631.0,0.96279812]
[1731235632480,0.072,79645.0,79631.0,1.33951812]
[1731235632679,0.04284565,79644.0,79640.0,0.3608]
[1731235632883,0.04284565,79643.0,79640.0,0.3608]
[1731235633083,0.04284565,79642.0,79640.0,0.3608]
[1731235633282,0.04284565,79641.0,79640.0,0.3608]
[1731235633675,0.04284565,79641.0,79640.0,0.73748]
[1731235633881,0.0733,79659.0,79644.0,0.08471812]
[1731235634087,0.05013281,79658.0,79649.0,0.3608]
[1731235634278,0.07412852,79659.0,79649.0,0.3608]
[1731235634477,0.00082852,79659.0,79658.0,0.3608]
[1731235635571,0.00082852,79659.0,79654.0,0.15644]
[1731235635777,0.00082852,79659.0,79654.0,0.24115812]
[1731235635979,0.00082852,79659.0,79658.0,0.3608]
[1731235638195,0.36268395,79677.0,79658.0,0.3608]
[1731235638379,0.36268395,79677.0,79666.0,0.3608]
[1731235638380,0.05037458,79676.0,79666.0,0.3608]
[1731235638582,0.36351247,79677.0,79666.0,0.3608]
[1731235639482,0.36351247,79677.0,79666.0,0.31685375]
[1731235639988,0.36351247,79677.0,79667.0,0.15644]
[1731235644194,0.44823059,79677.0,79666.0,0.31685375]
[1731235644387,0.3608,79668.0,79660.0,0.14928]
[1731235644786,0.36162852,79668.0,79660.0,0.14928]
[1731235645594,0.0666,79676.0,79665.0,0.3608]
[1731235645792,0.06742852,79676.0,79665.0,0.3608]
[1731235646106,0.00082852,79676.0,79665.0,0.3608]
[1731235647189,0.08471812,79674.0,79665.0,0.3608]
[1731235647694,0.3608,79669.0,79657.0,0.14928]
[1731235648093,0.36162852,79669.0,79657.0,0.14928]
[1731235648396,0.36162852,79669.0,79649.0,0.3608]
[1731235648397,0.44551812,79662.0,79649.0,0.3608]
[1731235648698,0.3608,79662.0,79649.0,0.3608]
[1731235648895,0.36162852,79662.0,79650.0,0.14928]
[1731235654606,0.09303609,79661.0,79657.0,0.3608]
[1731235654810,0.09303609,79660.0,79657.0,0.3608]
[1731235655108,0.0430514,79659.0,79657.0,0.3608]
[1731235655308,0.0430514,79658.0,79657.0,0.3608]
[1731235655512,0.0430514,79668.0,79657.0,0.3608]
[1731235655706,0.09328361,79668.0,79657.0,0.3608]
[1731235655905,0.09411213,79668.0,79657.0,0.3608]
[1731235656098,0.09328361,79667.0,79657.0,0.3608]
[1731235656410,0.09328361,79666.0,79657.0,0.3608]
[1731235656615,0.09328361,79665.0,79657.0,0.3608]
[1731235656908,0.00082852,79667.0,79650.0,0.14928]
[1731235656909,0.3608,79662.0,79650.0,0.14928]
[1731235657108,0.09328361,79661.0,79650.0,0.14928]
[1731235657304,0.09376435,79660.0,79650.0,0.14928]
[1731235657505,0.09376435,79659.0,79650.0,0.14928]
[1731235657705,0.09376435,79658.0,79650.0,0.14928]
[1731235657907,0.09376435,79657.0,79650.0,0.14928]
[1731235658112,0.09376435,79656.0,79650.0,0.14928]
[1731235658413,0.09376435,79655.0,79650.0,0.51008]
[1731235658606,0.09376435,79654.0,79650.0,0.51008]
[1731235658804,0.09376435,79653.0,79650.0,0.51008]
[1731235659005,0.04338839,79652.0,79650.0,0.51008]
[1731235659210,0.04338839,79651.0,79650.0,0.51008]
[1731235659603,0.04338839,79661.0,79650.0,0.51008]
[1731235659809,0.15154365,79661.0,79653.0,0.08471812]
[1731235660108,0.02511334,79664.0,79653.0,0.08471812]
[1731235660109,0.09395875,79660.0,79653.0,0.08471812]
[1731235660300,0.09395875,79659.0,79650.0,0.36144]
[1731235660500,0.15155225,79658.0,79650.0,0.3608]
[1731235660909,0.15238077,79658.0,79650.0,0.3608]
[1731235661103,0.15155225,79657.0,79650.0,0.3608]
[1731235661512,0.15238077,79657.0,79650.0,0.3608]
[1731235661713,0.04338839,79656.0,79650.0,0.3608]
[1731235662213,0.04421691,79656.0,79650.0,0.3608]
[1731235662408,0.04338839,79655.0,79650.0,0.3608]
[1731235662807,0.04421691,79655.0,79650.0,0.3608]
[1731235663107,0.04338839,79654.0,79650.0,0.3608]
[1731235663504,0.04338839,79653.0,79650.0,0.3608]
[1731235663705,0.04338839,79652.0,79650.0,0.51008]
[1731235663917,0.38674186,79664.0,79650.0,0.51008]
[1731235664110,0.09432053,79663.0,79650.0,0.51008]
[1731235664308,0.09432053,79662.0,79650.0,0.51008]
[1731235664508,0.09432053,79661.0,79650.0,0.51008]
[1731235664717,0.09432053,79660.0,79650.0,0.51008]
[1731235664911,0.04364576,79659.0,79650.0,0.51008]
[1731235665118,0.04364576,79658.0,79650.0,0.51008]
[1731235665315,0.04364576,79657.0,79650.0,0.51008]
[1731235665608,0.04364576,79656.0,79650.0,0.51008]
[1731235665817,0.04364576,79655.0,79650.0,0.51008]
[1731235666012,0.04364576,79654.0,79650.0,0.51008]
[1731235666217,0.04364576,79653.0,79650.0,0.51008]
[1731235666406,0.04364576,79652.0,79650.0,0.51008]
[1731235666603,0.04364576,79651.0,79650.0,0.51008]
[1731235667312,0.38591334,79664.0,79650.0,0.51008]
[1731235667510,0.09441735,79663.0,79650.0,0.51008]
[1731235667910,0.09524587,79663.0,79650.0,0.51008]
[1731235668111,0.09448689,79662.0,79658.0,0.3608]
[1731235668714,0.04369056,79661.0,79658.0,0.3608]
[1731235669015,0.3608,79674.0,79659.0,0.08471812]
[1731235669215,0.3608,79674.0,79666.0,0.3608]
[1731235669216,0.04416112,79673.0,79666.0,0.3608]
[1731235669414,0.36162852,79674.0,79666.0,0.31685299]
[1731235669415,0.04416112,79672.0,79666.0,0.31685299]
[1731235669611,0.3608,79707.0,79667.0,1.48312301]
[1731235669810,0.05243044,79700.0,79698.0,0.3608]
[1731235670012,0.0517922,79699.0,79682.0,0.3608]
[1731235670323,0.00082852,79701.0,79683.0,0.14164]
[1731235670810,0.00082852,79701.0,79689.0,0.3608]
[1731235676317,0.00082852,79701.0,79696.0,0.3608]
[1731235676518,0.00082852,79701.0,79689.0,0.3608]
[1731235676814,0.05201853,79700.0,79689.0,0.3608]
[1731235677019,0.05201853,79699.0,79689.0,0.3608]
[1731235677218,0.05201853,79698.0,79696.0,0.3608]
[1731235677424,0.11121351,79697.0,79696.0,0.26038668]
[1731235677718,0.05201853,79697.0,79687.0,0.44551812]
[1731235678020,0.05201853,79696.0,79687.0,0.44551812]
[1731235678221,0.05201853,79695.0,79687.0,0.44551812]
[1731235678417,0.05201853,79694.0,79687.0,0.44551812]
[1731235678615,0.00082852,79697.0,79687.0,0.44551812]
[1731235678814,0.05092518,79696.0,79687.0,0.44551812]
[1731235679012,0.05092518,79695.0,79688.0,0.1416]
[1731235679214,0.05092518,79694.0,79688.0,0.1416]
[1731235679414,0.00082852,79697.0,79688.0,0.1416]
[1731235679614,0.09461027,79696.0,79688.0,0.1416]
[1731235679915,0.043776,79695.0,79688.0,0.1416]
[1731235680117,0.04374346,79694.0,79688.0,0.1416]
[1731235680310,0.04374346,79693.0,79687.0,0.3608]
[1731235680514,0.04374346,79692.0,79684.0,0.1416]
[1731235680717,0.04374346,79691.0,79684.0,0.1416]
[1731235681024,0.04374346,79690.0,79684.0,0.1416]
[1731235681221,0.04374346,79689.0,79684.0,0.1416]
[1731235681523,0.04374346,79688.0,79686.0,0.08471812]
[1731235681730,0.04374346,79687.0,79686.0,0.08471812]
[1731235682109,0.04457198,79687.0,79686.0,0.08471812]
[1731235682314,0.04374346,79687.0,79686.0,0.08471812]
[1731235682525,0.04374346,79687.0,79684.0,0.1416]
[1731235682719,0.04374346,79686.0,79684.0,0.1416]
[1731235683020,0.09426313,79685.0,79684.0,0.1416]
[1731235683228,0.09509165,79685.0,79680.0,0.3608]
[1731235683423,0.09426313,79684.0,79677.0,0.00188216]
[1731235683623,0.3608,79682.0,79677.0,0.00188216]
[1731235683820,0.15107292,79681.0,79677.0,0.00188216]
[1731235684022,0.15107292,79680.0,79677.0,0.00188216]
[1731235684321,0.15107292,79679.0,79677.0,0.00188216]
[1731235684525,0.15107292,79678.0,79677.0,0.00188216]
[1731235684917,0.00082852,79678.0,79677.0,0.00188216]
[1731235685327,0.00082852,79678.0,79667.0,9.797e-05]
[1731235685529,0.3608,79675.0,79667.0,9.797e-05]
[1731235686027,0.36162852,79675.0,79667.0,9.797e-05]
[1731235686820,0.0685,79674.0,79667.0,9.797e-05]
[1731235687216,0.06932852,79674.0,79667.0,9.797e-05]
[1731235687424,0.23012852,79675.0,79667.0,9.797e-05]
[1731235687623,0.3608,79668.0,79667.0,9.797e-05]
[1731235688328,0.73736,79668.0,79658.0,0.05021466]
[1731235688519,0.08471812,79659.0,79658.0,0.05021466]
[1731235689423,0.08482478,79659.0,79658.0,0.05021466]
[1731235690736,0.46142478,79659.0,79658.0,0.05021466]
[1731235691622,0.00010666,79659.0,79658.0,0.05021466]
[1731235693027,0.76142478,79659.0,79645.0,0.3608]
[1731235693222,0.44551812,79651.0,79636.0,0.3608]
[1731235693631,0.08471812,79643.0,79636.0,0.3608]
[1731235694234,0.08471812,79643.0,79623.0,0.36152]
[1731235694432,0.08471812,79643.0,79631.0,0.3608]
[1731235694933,0.08471812,79643.0,79624.0,0.3608]
[1731235695538,0.3608,79644.0,79631.0,0.3608]
[1731235695733,0.3608,79644.0,79633.0,0.08471812]
[1731235695926,0.3608,79644.0,79631.0,0.3608]
[1731235696527,0.08471812,79649.0,79631.0,0.3608]
[1731235696727,0.08471812,79649.0,79639.0,0.3608]
[1731235701838,0.02512041,79651.0,79647.0,0.3608]
[1731235702043,0.02512041,79651.0,79647.0,0.31683985]
[1731235702241,0.08471812,79650.0,79640.0,0.4347]
[1731235709543,0.04048881,79649.0,79640.0,0.4347]
[1731235709751,0.08471812,79650.0,79640.0,0.4347]
[1731235709939,0.04048881,79649.0,79640.0,0.4347]
[1731235710142,0.04049877,79648.0,79640.0,0.4347]
[1731235710448,0.08471812,79650.0,79640.0,0.4347]
[1731235710650,0.04048997,79649.0,79640.0,0.4347]
[1731235710843,0.02512041,79651.0,79640.0,0.3608]
[1731235710844,0.08471812,79643.0,79640.0,0.3608]
[1731235711048,0.04039151,79642.0,79640.0,0.3608]
[1731235711349,0.08471812,79643.0,79640.0,0.3608]
[1731235711543,0.04027098,79642.0,79640.0,0.3608]
[1731235711740,0.08471812,79643.0,79640.0,0.3608]
[1731235711948,0.04026361,79642.0,79640.0,0.3608]
[1731235712244,0.04028201,79641.0,79640.0,0.3608]
[1731235714251,0.04091296,79646.0,79640.0,0.3608]
[1731235714542,0.08471812,79662.0,79649.0,0.3608]
[1731235714543,0.3608,79661.0,79649.0,0.3608]
[1731235714748,0.14261,79658.0,79649.0,0.3608]
[1731235714948,0.3608,79661.0,79649.0,0.3608]
[1731235715151,0.3608,79661.0,79651.0,0.08471812]
[1731235715452,0.00010666,79659.0,79651.0,0.08471812]
[1731235715637,0.00010666,79659.0,79658.0,0.3608]
[1731235717453,0.00010666,79659.0,79658.0,0.48824]
[1731235719150,0.00010666,79659.0,79658.0,0.12744]
[1731235720153,0.00010666,79659.0,79651.0,0.08471812]
[1731235720348,0.3608,79654.0,79641.0,0.1104658]
[1731235720546,0.08471812,79645.0,79641.0,0.1104658]
[1731235721050,0.08471812,79652.0,79641.0,0.1104658]
[1731235722556,0.08471812,79652.0,79641.0,0.0374658]
[1731235722857,0.08471812,79646.0,79641.0,0.0374658]
[1731235723450,0.3608,79645.0,79641.0,0.0374658]
[1731235725153,0.13999686,79644.0,79637.0,0.1204]
[1731235727561,0.3608,79638.0,79637.0,0.1204]
[1731235731667,0.36252423,79638.0,79637.0,0.1204]
[1731235733975,0.00172423,79638.0,79637.0,0.1204]
[1731235736369,0.00172423,79638.0,79637.0,0.4812]
[1731235737463,0.00172423,79638.0,79637.0,0.56591812]
[1731235737864,0.00010666,79659.0,79637.0,0.94263812]
[1731235738076,0.00010666,79659.0,79643.0,0.08471812]
[1731235738272,0.3608,79654.0,79644.0,0.12744]
[1731235738677,0.3608,79654.0,79644.0,0.48824]
[1731235739373,0.00010666,79659.0,79653.0,0.3608]
[1731235740774,0.08471812,79658.0,79644.0,0.00072]
[1731235740976,0.08471812,79652.0,79647.0,0.12416]
[1731235742183,0.08471812,79652.0,79644.0,0.3608]
[1731235742376,0.08471812,79652.0,79644.0,0.48496]
[1731235743475,0.44551812,79652.0,79644.0,0.3608]
[1731235744376,0.44551812,79652.0,79637.0,0.5320679]
[1731235744377,0.44551812,79645.0,79637.0,0.1712679]
[1731235744583,0.44551812,79638.0,79637.0,0.12666362]
[1731235744781,0.48643678,79638.0,79637.0,0.12666362]
[1731235744978,0.40171866,79638.0,79637.0,0.12666362]
[1731235745377,0.44921339,79638.0,79637.0,0.12666362]
[1731235745984,0.53323893,79638.0,79637.0,0.12666362]
[1731235746382,0.48643678,79638.0,79637.0,0.12666362]
[1731235746585,0.53303058,79638.0,79637.0,0.12666362]
[1731235746784,0.58597408,79638.0,79637.0,0.08266362]
[1731235747487,0.5849271,79638.0,79637.0,0.08266362]
[1731235748078,0.53470361,79638.0,79637.0,0.08266362]
[1731235749275,0.91142361,79638.0,79637.0,0.08266362]
[1731235750184,0.53470361,79638.0,79637.0,0.08266362]
[1731235750582,0.48178822,79638.0,79637.0,0.08266362]
[1731235751385,0.53500595,79638.0,79637.0,0.08266362]
[1731235751582,0.48178822,79638.0,79637.0,0.08266362]
[1731235751784,0.3970701,79638.0,79637.0,0.08266362]
[1731235752683,0.31057651,79638.0,79637.0,0.08266362]
[1731235753887,0.39529463,79638.0,79637.0,0.08266362]
[1731235758495,0.39539895,79638.0,79637.0,0.08266362]
[1731235758885,0.42052185,79638.0,79637.0,0.08266362]
[1731235761296,0.49122185,79638.0,79637.0,0.08266362]
[1731235761494,0.56302185,79638.0,79637.0,0.08266362]
[1731235764110,0.47819941,79638.0,79637.0,0.08266362]
[1731235764298,0.56302185,79638.0,79637.0,0.08266362]
[1731235765695,0.60238439,79638.0,79637.0,0.08266362]
[1731235766202,0.56302185,79638.0,79637.0,0.08266362]
[1731235766603,0.64808011,79638.0,79637.0,0.08266362]
[1731235767094,0.9023816,79638.0,79604.0,0.3608]
[1731235767299,0.08482244,79613.0,79599.0,0.07278403]
[1731235767502,0.3608,79619.0,79606.0,0.08482244]
[1731235767703,0.03879205,79618.0,79612.0,0.44562244]
[1731235768002,0.3608,79623.0,79612.0,0.3608]
[1731235768204,0.03915255,79622.0,79612.0,0.3608]
[1731235768398,0.03904004,79621.0,79612.0,0.3608]
[1731235774010,0.03904004,79620.0,79612.0,0.3608]
[1731235774212,0.03904004,79619.0,79612.0,0.3608]
[1731235774509,0.03904004,79618.0,79612.0,0.31682427]
[1731235774701,0.02523868,79622.0,79612.0,0.31682427]
[1731235775711,0.3608,79616.0,79609.0,0.1242]
[1731235775900,0.3608,79616.0,79605.0,0.36279]
[1731235776103,0.3608,79616.0,79605.0,0.48691]
[1731235776398,0.08482244,79607.0,79605.0,0.36279]
[1731235776701,0.08482244,79607.0,79605.0,0.00199]
[1731235777009,0.3608,79608.0,79604.0,9.224e-05]
[1731235777010,0.00638378,79606.0,79604.0,9.224e-05]
[1731235777510,0.44638244,79608.0,79604.0,9.224e-05]
[1731235777804,0.44562244,79608.0,79604.0,9.224e-05]
[1731235782218,0.00639049,79607.0,79604.0,9.224e-05]
[1731235784409,0.04372102,79607.0,79604.0,9.224e-05]
[1731235786515,0.02513583,79605.0,79604.0,9.224e-05]
[1731235787312,0.02513583,79605.0,79599.0,0.01497627]
[1731235787513,0.3608,79600.0,79599.0,0.01497627]
[1731235788413,0.02513583,79605.0,79599.0,0.02997627]
[1731235788613,0.3608,79608.0,79599.0,0.11479871]
[1731235789017,0.3608,79608.0,79599.0,0.02997627]
[1731235789208,0.02513583,79606.0,79599.0,0.02997627]
[1731235789411,0.00072,79608.0,79605.0,0.3608]
[1731235789614,0.02512807,79614.0,79605.0,0.3608]
[1731235789816,0.02512807,79614.0,79599.0,0.15409627]
[1731235790213,0.02512807,79614.0,79602.0,0.3608]
[1731235790415,0.02512807,79614.0,79603.0,0.0687]
[1731235790924,0.02512807,79614.0,79606.0,0.08482244]
[1731235791112,0.02512807,79614.0,79607.0,0.1436]
[1731235791622,0.3608,79617.0,79613.0,0.08482244]
[1731235791811,0.3608,79617.0,79607.0,0.22842244]
[1731235792212,0.3608,79617.0,79610.0,0.3608]
[1731235793124,0.3608,79617.0,79616.0,0.015]
[1731235797420,0.39945105,79617.0,79616.0,0.015]
[1731235797724,0.03865105,79617.0,79616.0,0.015]
[1731235797926,0.02512807,79627.0,79616.0,0.3918]
[1731235798119,0.02512807,79627.0,79618.0,0.3608]
[1731235798429,0.02512807,79627.0,79616.0,0.015]
[1731235799020,0.08482244,79626.0,79616.0,0.015]
[1731235799230,0.04463395,79621.0,79616.0,0.015]
[1731235799426,0.12945639,79620.0,79616.0,0.015]
[1731235799623,0.04463395,79619.0,79616.0,0.015]
[1731235799823,0.08482244,79620.0,79616.0,0.015]
[1731235800019,0.04457128,79619.0,79616.0,0.015]
[1731235800228,0.08482244,79620.0,79616.0,0.015]
[1731235800423,0.04456489,79619.0,79616.0,0.015]
[1731235800626,0.04455829,79618.0,79616.0,0.015]
[1731235800930,0.04451963,79617.0,79616.0,0.015]
[1731235801125,0.36091251,79622.0,79616.0,0.015]
[1731235801326,0.04453744,79621.0,79616.0,0.015]
[1731235801525,0.04453744,79620.0,79616.0,0.015]
[1731235801723,0.04453744,79619.0,79616.0,0.015]
[1731235801927,0.36091251,79622.0,79616.0,0.015]
[1731235801928,0.04453744,79618.0,79616.0,0.015]
[1731235802129,0.36091251,79622.0,79616.0,0.015]
[1731235802426,0.0444732,79621.0,79616.0,0.015]
[1731235802733,0.0444732,79620.0,79616.0,0.015]
[1731235802932,0.0444732,79619.0,79616.0,0.015]
[1731235803130,0.0444732,79618.0,79616.0,0.015]
[1731235803428,0.36091251,79622.0,79616.0,0.015]
[1731235803629,0.08482244,79620.0,79616.0,0.015]
[1731235803933,0.04397706,79619.0,79616.0,0.015]
[1731235804124,0.04397706,79618.0,79616.0,0.015]
[1731235804323,0.04397706,79617.0,79616.0,0.015]
[1731235805337,0.04397706,79617.0,79590.0,0.0712]
[1731235805627,0.44562244,79601.0,79590.0,0.0712]
[1731235807127,0.08482244,79601.0,79590.0,0.0712]
[1731235807323,0.3608,79600.0,79590.0,0.0712]
[1731235808531,0.3608,79600.0,79583.0,0.3608]
[1731235812530,0.39783931,79600.0,79583.0,0.3608]
[1731235814037,0.44055426,79600.0,79583.0,0.3608]
[1731235814238,0.47243931,79600.0,79583.0,0.3608]
[1731235814931,0.51506768,79600.0,79583.0,0.3608]
[1731235815326,0.47243931,79600.0,79583.0,0.3608]
[1731235816133,0.51504013,79600.0,79583.0,0.3608]
[1731235816336,0.87584013,79600.0,79581.0,0.0732]
[1731235817236,0.15424013,79600.0,79581.0,0.0732]
[1731235817535,0.83323931,79600.0,79581.0,0.0732]
[1731235817836,0.83323931,79600.0,79585.0,0.3608]
[1731235819034,0.75863931,79600.0,79585.0,0.3608]
[1731235819740,0.78377779,79600.0,79585.0,0.3608]
[1731235819937,0.02513848,79600.0,79597.0,0.08482244]
[1731235820241,0.02513848,79600.0,79592.0,0.3608]
[1731235820934,0.02513848,79600.0,79591.0,0.12392]
[1731235822632,0.02513848,79600.0,79585.0,0.3608]
[1731235822837,0.02513848,79600.0,79588.0,0.12392]
[1731235823435,0.02513848,79600.0,79585.0,0.3608]
[1731235824345,0.02513848,79600.0,79592.0,0.3608]
[1731235824845,0.02513848,79600.0,79587.0,0.12392]
[1731235824846,0.10996092,79600.0,79587.0,0.12392]
[1731235826139,0.10996092,79600.0,79585.0,0.3608]
[1731235829747,0.10996092,79600.0,79585.0,0.03733364]
[1731235829939,0.10996092,79600.0,79582.0,0.12392]
[1731235829940,0.10996092,79600.0,79583.0,0.03733364]
[1731235830143,0.02513848,79600.0,79585.0,0.03733364]
[1731235830443,0.02513848,79600.0,79584.0,0.08482244]
[1731235830444,0.02513848,79600.0,79587.0,0.03733364]
[1731235830639,0.02513848,79600.0,79591.0,0.3608]
[1731235833448,0.02513848,79600.0,79591.0,0.39813364]
[1731235833950,0.02513848,79600.0,79591.0,0.3608]
[1731235835052,0.3608,79603.0,79591.0,0.3608]
[1731235835053,0.3608,79603.0,79596.0,0.08482244]
[1731235835352,0.36268551,79616.0,79602.0,0.08482244]
[1731235835553,0.36268551,79616.0,79599.0,0.39813364]
[1731235835554,0.00188551,79616.0,79608.0,0.08482244]
[1731235835752,0.08267135,79615.0,79609.0,0.0703]
[1731235835956,0.08267135,79614.0,79609.0,0.0703]
[1731235836152,0.03825523,79613.0,79609.0,0.0703]
[1731235836345,0.03825523,79612.0,79609.0,0.0703]
[1731235836545,0.03825523,79611.0,79609.0,0.0703]
[1731235836852,0.03825523,79610.0,79609.0,0.0703]
[1731235837050,0.03825523,79614.0,79609.0,0.0703]
[1731235837353,0.03825523,79613.0,79609.0,0.0703]
[1731235837554,0.03825523,79612.0,79609.0,0.0703]
[1731235837754,0.02513385,79615.0,79609.0,0.0703]
[1731235837755,0.03825523,79611.0,79609.0,0.0703]
[1731235837951,0.02513385,79615.0,79609.0,0.0703]
[1731235838146,0.03842905,79614.0,79609.0,0.0703]
[1731235838348,0.2167,79639.0,79609.0,0.0703]
[1731235838349,0.16198752,79641.0,79613.0,0.3608]
[1731235838561,0.16198752,79641.0,79610.0,0.50048]
[1731235838562,0.03867287,79639.0,79627.0,0.3608]
[1731235838854,0.02513385,79646.0,79636.0,0.3608]
[1731235839054,0.02513385,79646.0,79633.0,0.12364]
[1731235839352,0.00013696,79639.0,79633.0,0.12364]
[1731235839551,0.00013696,79639.0,79629.0,0.3608]
[1731235839751,0.08482244,79634.0,79629.0,0.3608]
[1731235841043,0.08482244,79634.0,79628.0,0.0695]
[1731235841253,0.00013696,79639.0,79628.0,0.0695]
[1731235842551,0.3608,79633.0,79621.0,0.0728]
[1731235843757,0.08482244,79628.0,79621.0,0.0728]
[1731235844653,0.08482244,79622.0,79612.0,0.0734]
[1731235844854,0.08482244,79616.0,79608.0,0.0748]
[1731235845555,0.08482244,79622.0,79608.0,0.0748]
[1731235846255,0.08482244,79622.0,79603.0,0.36144]
[1731235846448,0.3608,79625.0,79603.0,0.3608]
[1731235846449,0.08482244,79615.0,79603.0,0.3608]
[1731235846952,0.0723,79614.0,79603.0,0.3608]
[1731235848056,0.3608,79618.0,79603.0,0.3608]
[1731235848261,0.3608,79618.0,79604.0,0.0697]
[1731235848570,0.0001382,79621.0,79604.0,0.0697]
[1731235851561,0.12730381,79610.0,79603.0,0.3608]
[1731235851864,0.3608,79604.0,79593.0,0.3608]
[1731235852063,0.0734,79603.0,79593.0,0.3608]
[1731235857265,0.3608,79604.0,79593.0,0.3608]
[1731235857858,0.3608,79614.0,79602.0,0.3608]
[1731235858159,0.3608,79623.0,79604.0,0.12730381]
[1731235858361,0.3608,79623.0,79605.0,0.075]
[1731235858769,0.4366,79623.0,79605.0,0.075]
[1731235858966,0.4374,79623.0,79605.0,0.075]
[1731235860572,0.02513377,79620.0,79605.0,0.075]
[1731235860771,0.3616,79623.0,79606.0,0.0733]
[1731235861074,0.3608,79623.0,79612.0,0.3608]
[1731235861466,0.3608,79623.0,79613.0,0.12352]
[1731235861866,0.0695,79632.0,79620.0,0.3608]
[1731235862361,0.3608,79634.0,79620.0,0.3608]
[1731235863162,0.02513377,79632.0,79620.0,0.3608]
[1731235865776,0.3608,79629.0,79620.0,0.48428]
[1731235867967,0.08482553,79633.0,79620.0,0.48428]
[1731235868169,0.3608,79636.0,79620.0,0.56910553]
[1731235868670,0.3608,79636.0,79626.0,0.08482553]
[1731235868869,0.3608,79636.0,79627.0,0.0708]
[1731235869378,6.653e-05,79635.0,79627.0,0.0708]
[1731235869580,0.08482553,79634.0,79627.0,0.0708]
[1731235869883,0.08482553,79634.0,79621.0,0.0751]
[1731235870075,0.08482553,79634.0,79622.0,0.12348]
[1731235870573,0.03692951,79633.0,79622.0,0.12348]
[1731235870876,0.03692951,79632.0,79622.0,0.12348]
[1731235871179,0.08482553,79634.0,79622.0,0.12348]
[1731235871371,0.03703042,79633.0,79622.0,0.12348]
[1731235871569,0.08482553,79634.0,79622.0,0.12348]
[1731235871774,0.08482553,79634.0,79620.0,0.3608]